fUSD/lending_fUSD_20241121
["ID","MTS","AMOUNT","RATE_DAILY","PERIOD"]
[342881624,1732192259823,-1061.46,0.00041369,18]
[342881625,1732192259832,-574.04,0.00041369,18]
[342881626,1732192259842,-500.0,0.00041369,18]
[342881627,1732192259851,-728.13,0.00041369,18]
[342881628,1732192259861,-1386.06,0.00041369,18]
[342881629,1732192259870,-582.03,0.00041369,18]
[342881630,1732192259880,-1235.27,0.00041369,18]
[342881631,1732192259889,-500.0,0.00041369,18]
[342881632,1732192259899,-500.0,0.00041369,18]
[342881633,1732192259909,-1566.54,0.00041369,18]
[342881634,1732192259918,-500.0,0.00041369,18]
[342881635,1732192259928,-500.0,0.00041369,18]
[342881636,1732192259940,-500.0,0.00041369,18]
[342881637,1732192259949,-500.0,0.00041369,18]
[342881638,1732192259959,-500.0,0.00041369,18]
[342881639,1732192259968,-1165.66,0.00041369,18]
[342881640,1732192259978,-1442.15,0.00041369,18]
[342881641,1732192259987,-651.63,0.00041369,18]
[342881642,1732192259997,-457.5693323,0.00041369,18]
[342881643,1732192260007,-799.41,0.00041369,18]
[342881644,1732192260016,-500.0,0.00041369,18]
[342881645,1732192260026,-500.0,0.00041369,18]
[342881646,1732192260036,-500.0,0.00041369,18]
[342881647,1732192260046,-500.0,0.00041369,18]
[342881648,1732192260056,-820.56,0.00041369,18]
[342881649,1732192260066,-500.0,0.00041369,18]
[342881650,1732192260076,-500.0,0.00041369,18]
[342881651,1732192260086,-500.0,0.00041369,18]
[342881652,1732192260216,-500.0,0.00041369,18]
[342881653,1732192260236,-500.0,0.00041369,18]
[342881654,1732192260246,-500.0,0.00041369,18]
[342881655,1732192260256,-500.0,0.00041369,18]
[342881656,1732192260266,-500.0,0.00041369,18]
[342881657,1732192260276,-500.0,0.00041369,18]
[342881658,1732192260286,-1003.04,0.00041369,18]
[342881659,1732192260295,-500.0,0.00041369,18]
[342881660,1732192260305,-500.0,0.00041369,18]
[342881661,1732192260314,-2905.96,0.00041369,18]
[342881662,1732192260324,-500.0,0.00041369,18]
[342881663,1732192260334,-500.0,0.00041369,18]
[342881664,1732192260344,-901.66,0.00041369,18]
[342881665,1732192260354,-931.03,0.00041369,18]
[342881666,1732192260364,-500.0,0.00041369,18]
[342881667,1732192260374,-500.0,0.00041369,18]
[342881668,1732192260384,-500.0,0.00041369,18]
[342881669,1732192260394,-500.0,0.00041369,18]
[342881670,1732192260403,-500.0,0.00041369,18]
[342881671,1732192260413,-1402.56,0.00041369,18]
[342881672,1732192260423,-500.0,0.00041369,18]
[342881673,1732192260432,-500.0,0.00041369,18]
[342881674,1732192260445,-681.68,0.00041369,18]
[342881675,1732192260454,-503.38,0.00041369,18]
[342881676,1732192260464,-500.0,0.00041369,18]
[342881677,1732192260473,-1056.61,0.00041369,18]
[342881678,1732192260483,-934.73,0.00041369,18]
[342881679,1732192260493,-500.0,0.00041369,18]
[342881680,1732192260502,-500.0,0.00041369,18]
[342881681,1732192260512,-901.69,0.00041369,18]
[342881682,1732192260521,-500.0,0.00041369,18]
[342881683,1732192260531,-500.0,0.00041369,18]
[342881684,1732192260541,-910.29,0.00041369,18]
[342881685,1732192260550,-789.11,0.00041369,18]
[342881686,1732192260560,-696.46,0.00041369,18]
[342881687,1732192260570,-1460.47,0.00041369,18]
[342881688,1732192260580,-500.0,0.00041369,18]
[342881689,1732192260590,-500.0,0.00041369,18]
[342881690,1732192260599,-500.0,0.00041369,18]
[342881691,1732192260609,-500.0,0.00041369,18]
[342881692,1732192260618,-543.24,0.00041369,18]
[342881693,1732192260628,-500.0,0.00041369,18]
[342881694,1732192260638,-500.0,0.00041369,18]
[342881695,1732192260651,-500.0,0.00041369,18]
[342881696,1732192260661,-2445.34,0.00041369,18]
[342881697,1732192260671,-695.16,0.00041369,18]
[342881698,1732192260682,-1591.77,0.00041369,18]
[342881699,1732192260699,-500.0,0.00041369,18]
[342881700,1732192260709,-500.0,0.00041369,18]
[342881701,1732192260719,-500.0,0.00041369,18]
[342881702,1732192260729,-1097.23,0.00041369,18]
[342881703,1732192260739,-150.0,0.00041369,18]
[342881704,1732192260749,-500.0,0.00041369,18]
[342881705,1732192260758,-500.0,0.00041369,18]
[342881706,1732192260768,-582.02,0.00041369,18]
[342881707,1732192260779,-1842.96,0.00041369,18]
[342881708,1732192260789,-500.0,0.00041369,18]
[342881709,1732192260799,-500.0,0.00041369,18]
[342881710,1732192260809,-500.0,0.00041369,18]
[342881711,1732192260819,-645.74,0.00041369,18]
[342881712,1732192260828,-707.25,0.00041369,18]
[342881713,1732192260838,-512.8,0.00041369,18]
[342881714,1732192260847,-500.0,0.00041369,18]
[342881715,1732192260856,-677.68,0.00041369,18]
[342881716,1732192260866,-918.44,0.00041369,18]
[342881717,1732192260875,-2834.65,0.00041369,18]
[342881718,1732192260885,-506.27,0.00041369,18]
[342881719,1732192260896,-500.0,0.00041369,18]
[342881720,1732192260905,-500.0,0.00041369,18]
[342881721,1732192260915,-872.76,0.00041369,18]
[342881722,1732192260925,-1009.22,0.00041369,18]
[342881723,1732192260938,-767.37,0.00041369,18]
[342881724,1732192260948,-500.0,0.00041369,18]
[342881725,1732192260958,-834.55,0.00041369,18]
[342881726,1732192260967,-627.24,0.00041369,18]
[342881727,1732192260977,-1587.44,0.00041369,18]
[342881728,1732192260987,-959.84,0.00041369,18]
[342881729,1732192260997,-500.0,0.00041369,18]
[342881730,1732192261008,-500.0,0.00041369,18]
[342881731,1732192261017,-500.0,0.00041369,18]
[342881732,1732192261028,-500.0,0.00041369,18]
[342881733,1732192261037,-507.00987637,0.00041369,18]
[342881734,1732192261047,-500.0,0.00041369,18]
[342881735,1732192261057,-500.0,0.00041369,18]
[342881736,1732192261067,-500.0,0.00041369,18]
[342881737,1732192261077,-1902.61,0.00041369,18]
[342881738,1732192261087,-500.0,0.00041369,18]
[342881739,1732192261097,-500.0,0.00041369,18]
[342881740,1732192261107,-1314.49,0.00041369,18]
[342881741,1732192261117,-724.88,0.00041369,18]
[342881742,1732192261127,-500.0,0.00041369,18]
[342881743,1732192261137,-500.0,0.00041369,18]
[342881744,1732192261146,-500.0,0.00041369,18]
[342881745,1732192261156,-1090.7,0.00041369,18]
[342881746,1732192261165,-500.0,0.00041369,18]
[342881747,1732192261175,-500.0,0.00041369,18]
[342881748,1732192261187,-1086.56,0.00041369,18]
[342881749,1732192261196,-1033.02,0.00041369,18]
[342881750,1732192261206,-500.0,0.00041369,18]
[342881751,1732192261215,-500.0,0.00041369,18]
[342881752,1732192261225,-500.0,0.00041369,18]
[342881753,1732192261235,-678.33,0.00041369,18]
[342881754,1732192261244,-500.0,0.00041369,18]
[342881755,1732192261254,-500.0,0.00041369,18]
[342881756,1732192261264,-2136.56,0.00041369,18]
[342881757,1732192261274,-566.29,0.00041369,18]
[342881758,1732192261284,-500.0,0.00041369,18]
[342881759,1732192261294,-922.31,0.00041369,18]
[342881760,1732192261305,-592.16911098,0.00041369,18]
[342881761,1732192261314,-500.0,0.00041369,18]
[342881762,1732192261324,-389.11669943,0.00041369,18]
[342881763,1732192261334,-500.0,0.00041369,18]
[342881764,1732192261343,-500.0,0.00041369,18]
[342881765,1732192261352,-2023.45,0.00041369,18]
[342881766,1732192261363,-1843.79,0.00041369,18]
[342881767,1732192261373,-211.08,0.00041369,7]
[342881768,1732192261383,-523.34,0.00041369,18]
[342881769,1732192261394,-500.0,0.00041369,18]
[342881770,1732192261404,-519.56,0.00041369,18]
[342881771,1732192261413,-500.0,0.00041369,18]
[342881772,1732192261423,-500.0,0.00041369,18]
[342881773,1732192261433,-1683.91,0.00041369,18]
[342881774,1732192261445,-500.0,0.00041369,18]
[342881775,1732192261454,-500.0,0.00041369,18]
[342881776,1732192261464,-500.0,0.00041369,18]
[342881777,1732192261473,-592.34,0.00041369,18]
[342881778,1732192261483,-500.0,0.00041369,18]
[342881779,1732192261493,-1696.12,0.00041369,18]
[342881780,1732192261503,-500.0,0.00041369,18]
[342881781,1732192261512,-500.0,0.00041369,18]
[342881782,1732192261522,-646.15,0.00041369,18]
[342881783,1732192261538,-1812.08,0.00041369,18]
[342881784,1732192261549,-500.0,0.00041369,18]
[342881785,1732192261559,-1815.91,0.00041369,7]
[342881786,1732192261570,-500.0,0.00041369,18]
[342881787,1732192261580,-2000.0,0.00041369,30]
[342881788,1732192261590,-925.38,0.00041369,18]
[342881789,1732192261601,-1067.36,0.00041369,18]
[342881790,1732192261611,-500.0,0.00041369,18]
[342881791,1732192261621,-439.26684312,0.00041369,18]
[342881792,1732192261631,-2317.02,0.00041369,18]
[342881793,1732192261640,-500.0,0.00041369,18]
[342881794,1732192261652,-500.0,0.00041369,18]
[342881795,1732192261662,-500.0,0.00041369,18]
[342881796,1732192261672,-500.0,0.00041369,18]
[342881797,1732192261682,-500.0,0.00041369,18]
[342881798,1732192261696,-593.86,0.00041369,18]
[342881799,1732192261706,-912.44,0.00041369,18]
[342881800,1732192261716,-966.95,0.00041369,18]
[342881801,1732192261726,-500.0,0.00041369,18]
[342881802,1732192261735,-656.93,0.00041369,18]
[342881803,1732192261745,-500.0,0.00041369,18]
[342881804,1732192261754,-500.0,0.00041369,18]
[342881805,1732192261765,-500.0,0.00041369,18]
[342881806,1732192261775,-500.0,0.00041369,18]
[342881807,1732192261784,-1056.77,0.00041369,18]
[342881808,1732192261794,-500.0,0.00041369,18]
[342881809,1732192261804,-500.0,0.00041369,18]
[342881810,1732192261813,-804.96,0.00041369,18]
[342881811,1732192261824,-570.1,0.00041369,18]
[342881812,1732192261837,-500.0,0.00041369,18]
[342881813,1732192261846,-500.0,0.00041369,18]
[342881814,1732192261856,-500.0,0.00041369,18]
[342881815,1732192261865,-542.45,0.00041369,18]
[342881816,1732192261875,-546.50046379,0.00041369,18]
[342881817,1732192261884,-771.35,0.00041369,18]
[342881818,1732192261893,-500.0,0.00041369,18]
[342881819,1732192261903,-945.74,0.00041369,18]
[342881820,1732192261913,-500.0,0.00041369,18]
[342881821,1732192261922,-1637.5,0.00041369,18]
[342881822,1732192261932,-1119.89,0.00041369,18]
[342881823,1732192261945,-500.0,0.00041369,18]
[342881824,1732192261955,-500.0,0.00041369,18]
[342881825,1732192261965,-1895.48,0.00041369,18]
[342881826,1732192261975,-1192.18,0.00041369,18]
[342881827,1732192261986,-500.0,0.00041369,18]
[342881828,1732192261995,-500.0,0.00041369,18]
[342881829,1732192262005,-500.0,0.00041369,18]
[342881830,1732192262015,-2351.13,0.00041369,18]
[342881831,1732192262024,-1756.52,0.00041369,18]
[342881832,1732192262034,-549.26,0.00041369,18]
[342881833,1732192262043,-1465.86,0.00041369,18]
[342881834,1732192262053,-500.0,0.00041369,18]
[342881835,1732192262063,-1224.35,0.00041369,18]
[342881836,1732192262072,-258.16088237,0.00041369,18]
[342881837,1732192262082,-500.0,0.00041369,18]
[342881838,1732192262091,-500.0,0.00041369,18]
[342881839,1732192262101,-508.31,0.00041369,18]
[342881840,1732192262110,-535.39,0.00041369,18]
[342881841,1732192262120,-500.0,0.00041369,18]
[342881842,1732192262129,-500.0,0.00041369,18]
[342881843,1732192262139,-377.56761333,0.00041369,18]
[342881844,1732192262149,-1627.65,0.00041369,18]
[342881845,1732192262158,-1684.19,0.00041369,18]
[342881846,1732192262168,-500.0,0.00041369,18]
[342881847,1732192262178,-500.0,0.00041369,18]
[342881848,1732192262190,-500.0,0.00041369,18]
[342881849,1732192262199,-500.0,0.00041369,18]
[342881850,1732192262208,-500.0,0.00041369,18]
[342881851,1732192262218,-1233.11,0.00041369,18]
[342881852,1732192262227,-608.95,0.00041369,18]
[342881853,1732192262236,-598.79,0.00041369,18]
[342881854,1732192262245,-705.05,0.00041369,18]
[342881855,1732192262255,-642.85,0.00041369,18]
[342881856,1732192262264,-1870.59,0.00041369,18]
[342881857,1732192262274,-1492.67,0.00041369,18]
[342881858,1732192262283,-500.0,0.00041369,18]
[342881859,1732192262293,-500.0,0.00041369,18]
[342881860,1732192262302,-500.0,0.00041369,18]
[342881861,1732192262311,-500.0,0.00041369,18]
[342881862,1732192262321,-816.79,0.00041369,18]
[342881863,1732192262330,-2104.23,0.00041369,18]
[342881864,1732192262339,-500.0,0.00041369,18]
[342881865,1732192262348,-539.03,0.00041369,18]
[342881866,1732192262358,-500.0,0.00041369,18]
[342881867,1732192262367,-500.0,0.00041369,18]
[342881868,1732192262377,-1778.67,0.00041369,18]
[342881869,1732192262387,-500.0,0.00041369,18]
[342881870,1732192262396,-500.0,0.00041369,18]
[342881871,1732192262406,-508.21948716,0.00041369,18]
[342881872,1732192262714,-1404.4651016,0.00041369,18]
[342881873,1732192263345,-910.69,0.00041095,18]
[342881874,1732192263357,-8.5248984,0.00041369,18]
[342881875,1732192263368,-500.0,0.00041369,18]
[342881876,1732192263379,-500.0,0.00041369,18]
[342881877,1732192263388,-569.40068415,0.00041369,18]
[342881878,1732192263398,-640.67,0.00041369,18]
[342881879,1732192263408,-890.13,0.00041369,18]
[342881880,1732192263418,-500.0,0.00041369,18]
[342881881,1732192263428,-500.0,0.00041369,18]
[342881882,1732192263441,-392.98115199,0.00041369,18]
[342881883,1732192263451,-643.67,0.00041369,18]
[342881884,1732192263461,-500.0,0.00041369,18]
[342881885,1732192263471,-500.0,0.00041369,18]
[342881886,1732192263481,-526.41,0.00041369,18]
[342881887,1732192263491,-500.0,0.00041369,18]
[342881888,1732192263501,-500.0,0.00041369,18]
[342881889,1732192263512,-831.2,0.00041369,18]
[342881890,1732192263523,-500.0,0.00041369,18]
[342881891,1732192263533,-644.02,0.00041369,18]
[342881892,1732192263544,-567.17,0.00041369,18]
[342881893,1732192263554,-853.97,0.00041369,18]
[342881894,1732192263565,-1099.82,0.00041369,18]
[342881895,1732192263576,-500.0,0.00041369,18]
[342881896,1732192263587,-500.0,0.00041369,18]
[342881897,1732192263598,-500.0,0.00041369,18]
[342881898,1732192263610,-500.0,0.00041369,18]
[342881899,1732192263620,-887.39,0.00041369,18]
[342881900,1732192263631,-881.34,0.00041369,18]
[342881901,1732192263642,-500.0,0.00041369,18]
[342881902,1732192263654,-500.0,0.00041369,18]
[342881903,1732192263665,-803.78,0.00041369,18]
[342881904,1732192263676,-1181.66,0.00041369,18]
[342881905,1732192263686,-1376.96,0.00041369,18]
[342881906,1732192263704,-500.0,0.00041369,18]
[342881907,1732192263715,-500.0,0.00041369,18]
[342881908,1732192263725,-924.64,0.00041369,18]
[342881909,1732192263735,-836.58,0.00041369,18]
[342881910,1732192263746,-500.0,0.00041369,18]
[342881911,1732192263758,-621.2727652,0.00041369,18]
[342881912,1732192263770,-1642.77,0.00041369,18]
[342881913,1732192263782,-643.63,0.00041369,18]
[342881914,1732192263793,-500.0,0.00041369,18]
[342881915,1732192263803,-536.59,0.00041369,18]
[342881916,1732192263814,-2209.06,0.00041369,18]
[342881917,1732192263825,-1553.81,0.00041369,18]
[342881918,1732192263834,-588.54,0.00041369,18]
[342881919,1732192263845,-500.0,0.00041369,18]
[342881920,1732192263855,-387.57830177,0.00041369,18]
[342881921,1732192263865,-721.18,0.00041369,18]
[342881922,1732192263875,-600.55,0.00041369,18]
[342881923,1732192263885,-500.0,0.00041369,18]
[342881924,1732192263895,-500.0,0.00041369,18]
[342881925,1732192263907,-500.0,0.00041369,18]
[342881926,1732192263917,-500.0,0.00041369,18]
[342881927,1732192263928,-500.0,0.00041369,18]
[342881928,1732192263942,-500.0,0.00041369,18]
[342881929,1732192263952,-500.0,0.00041369,18]
[342881930,1732192263964,-1101.84,0.00041369,18]
[342881931,1732192263975,-1177.55,0.00041369,18]
[342881932,1732192263986,-500.0,0.00041369,18]
[342881933,1732192263997,-2244.08,0.00041369,18]
[342881934,1732192264007,-500.0,0.00041369,18]
[342881935,1732192264018,-500.0,0.00041369,18]
[342881936,1732192264030,-500.0,0.00041369,18]
[342881937,1732192264041,-1070.89,0.00041369,18]
[342881938,1732192264051,-500.0,0.00041369,18]
[342881939,1732192264062,-1972.07,0.00041369,18]
[342881940,1732192264073,-500.0,0.00041369,18]
[342881941,1732192264084,-914.86,0.00041369,18]
[342881942,1732192264094,-500.0,0.00041369,18]
[342881943,1732192264105,-500.0,0.00041369,18]
[342881944,1732192264115,-500.0,0.00041369,18]
[342881945,1732192264125,-1054.04,0.00041369,18]
[342881946,1732192264136,-584.89,0.00041369,18]
[342881947,1732192264146,-1517.05,0.00041369,18]
[342881948,1732192264156,-723.01,0.00041369,18]
[342881949,1732192264166,-500.0,0.00041369,18]
[342881950,1732192264176,-819.42,0.00041369,18]
[342881951,1732192264186,-500.0,0.00041369,18]
[342881952,1732192264198,-2735.82,0.00041369,18]
[342881953,1732192264207,-500.0,0.00041369,18]
[342881954,1732192264217,-896.82,0.00041369,18]
[342881955,1732192264227,-500.0,0.00041369,18]
[342881956,1732192264236,-500.0,0.00041369,18]
[342881957,1732192264245,-392.79597656,0.00041369,18]
[342881958,1732192264255,-500.0,0.00041369,18]
[342881959,1732192264265,-500.0,0.00041369,18]
[342881960,1732192264274,-1394.62,0.00041369,18]
[342881961,1732192264284,-500.0,0.00041369,18]
[342881962,1732192264294,-693.99,0.00041369,18]
[342881963,1732192264303,-500.0,0.00041369,18]
[342881964,1732192264313,-500.0,0.00041369,18]
[342881965,1732192264323,-500.0,0.00041369,18]
[342881966,1732192264332,-500.0,0.00041369,18]
[342881967,1732192264341,-500.0,0.00041369,18]
[342881968,1732192264351,-500.0,0.00041369,18]
[342881969,1732192264361,-500.0,0.00041369,18]
[342881970,1732192264370,-500.0,0.00041369,18]
[342881971,1732192264379,-1192.73,0.00041369,18]
[342881972,1732192264389,-624.1,0.00041369,18]
[342881973,1732192264399,-500.0,0.00041369,18]
[342881974,1732192264409,-739.91,0.00041369,18]
[342881975,1732192264420,-834.69,0.00041369,18]
[342881976,1732192264430,-1317.0,0.00041369,18]
[342881977,1732192264442,-500.0,0.00041369,18]
[342881978,1732192264452,-500.0,0.00041369,18]
[342881979,1732192264462,-739.36,0.00041369,18]
[342881980,1732192264473,-500.0,0.00041369,18]
[342881981,1732192264484,-2823.12,0.00041369,18]
[342881982,1732192264495,-500.0,0.00041369,18]
[342881983,1732192264506,-500.0,0.00041369,18]
[342881984,1732192264517,-500.0,0.00041369,18]
[342881985,1732192264529,-723.48,0.00041369,18]
[342881986,1732192264539,-1153.89,0.00041369,18]
[342881987,1732192264549,-500.0,0.00041369,18]
[342881988,1732192264560,-2930.26,0.00041369,18]
[342881989,1732192264570,-500.0,0.00041369,18]
[342881990,1732192264581,-500.0,0.00041369,18]
[342881991,1732192264593,-573.13,0.00041369,18]
[342881992,1732192264603,-2380.98,0.00041369,18]
[342881993,1732192264614,-500.0,0.00041369,18]
[342881994,1732192264627,-2023.06,0.00041369,18]
[342881995,1732192264638,-238.19257689,0.00041369,18]
[342881996,1732192264668,-261.80742311,0.00041369,18]
[342881997,1732192264680,-500.0,0.00041369,18]
[342881998,1732192264695,-500.0,0.00041369,18]
[342881999,1732192264706,-500.0,0.00041369,18]
[342882000,1732192264718,-500.0,0.00041369,18]
[342882001,1732192264729,-500.0,0.00041369,18]
[342882002,1732192264741,-515.63,0.00041369,18]
[342882003,1732192264752,-500.0,0.00041369,18]
[342882004,1732192264763,-739.14,0.00041369,18]
[342882005,1732192264773,-500.0,0.00041369,18]
[342882006,1732192264783,-565.37,0.00041369,18]
[342882007,1732192264794,-500.0,0.00041369,18]
[342882008,1732192264805,-941.68,0.00041369,18]
[342882009,1732192264816,-788.33,0.00041369,18]
[342882010,1732192264827,-500.0,0.00041369,18]
[342882011,1732192264838,-500.0,0.00041369,18]
[342882012,1732192264849,-500.0,0.00041369,18]
[342882013,1732192264860,-500.0,0.00041369,18]
[342882014,1732192264871,-2502.06,0.00041369,18]
[342882015,1732192264882,-653.46,0.00041369,18]
[342882016,1732192264893,-834.21,0.00041369,18]
[342882017,1732192264904,-500.0,0.00041369,18]
[342882018,1732192264915,-500.0,0.00041369,18]
[342882019,1732192264926,-895.85,0.00041369,18]
[342882020,1732192264937,-500.0,0.00041369,18]
[342882021,1732192264952,-500.0,0.00041369,18]
[342882022,1732192264963,-596.59,0.00041369,18]
[342882023,1732192264973,-500.0,0.00041369,18]
[342882024,1732192264984,-542.88822237,0.00041369,18]
[342882025,1732192264995,-717.36,0.00041369,18]
[342882026,1732192265005,-722.44,0.00041369,18]
[342882027,1732192265015,-500.0,0.00041369,18]
[342882028,1732192265025,-612.76,0.00041369,18]
[342882029,1732192265036,-500.0,0.00041369,18]
[342882030,1732192265046,-1028.51,0.00041369,18]
[342882031,1732192265057,-500.0,0.00041369,18]
[342882032,1732192265067,-603.77,0.00041369,18]
[342882033,1732192265077,-500.0,0.00041369,18]
[342882034,1732192265188,-500.0,0.00041369,18]
[342882035,1732192265200,-2554.37,0.00041369,18]
[342882036,1732192265210,-777.93,0.00041369,18]
[342882037,1732192265221,-2881.99,0.00041369,18]
[342882038,1732192265231,-500.0,0.00041369,18]
[342882039,1732192265241,-954.7,0.00041369,18]
[342882040,1732192265251,-500.0,0.00041369,18]
[342882041,1732192265260,-690.01,0.00041369,18]
[342882042,1732192265270,-737.82,0.00041369,18]
[342882043,1732192265280,-1184.56,0.00041369,18]
[342882044,1732192265289,-1072.12,0.00041369,18]
[342882045,1732192265299,-500.0,0.00041369,18]
[342882046,1732192265308,-500.0,0.00041369,18]
[342882047,1732192265318,-500.0,0.00041369,18]
[342882048,1732192265327,-1271.49,0.00041369,18]
[342882049,1732192265336,-500.0,0.00041369,18]
[342882050,1732192265345,-500.0,0.00041369,18]
[342882051,1732192265355,-500.0,0.00041369,18]
[342882052,1732192265365,-2546.82,0.00041369,18]
[342882053,1732192265375,-500.0,0.00041369,18]
[342882054,1732192265384,-603.75,0.00041369,18]
[342882055,1732192265393,-500.0,0.00041369,18]
[342882056,1732192265402,-915.45,0.00041369,7]
[342882057,1732192265412,-500.0,0.00041369,18]
[342882058,1732192265421,-500.0,0.00041369,18]
[342882059,1732192265431,-500.0,0.00041369,18]
[342882060,1732192265444,-151.14224226,0.00041369,18]
[342882061,1732192265454,-1129.02,0.00041369,18]
[342882062,1732192265463,-685.77479331,0.00041369,18]
[342882063,1732192573602,150.0,0.00015342,2]
[342882064,1732192573624,6.85,0.00015342,2]
[342882069,1732193091389,10000.0,0.000245,60]
[342882070,1732193094393,-500.0,0.00024932,2]
[342882071,1732193094418,-164.4205,0.00025,2]
[342882072,1732193094440,-5657.71744824,0.00026129,2]
[342882073,1732193094464,-875.18991451,0.00026461,2]
[342882074,1732193094491,-865.07983201,0.00026561,2]
[342882075,1732193094515,-312.40625,0.00026761,2]
[342882076,1732193094539,-300.0,0.00026985,2]
[342882077,1732193094565,-800.0,0.00026986,120]
[342882078,1732193094589,-800.0,0.00026986,120]
[342882079,1732193094612,-800.0,0.00026986,120]
[342882080,1732193094635,-800.0,0.00026986,120]
[342882081,1732193094658,-150.0,0.000274,2]
[342882082,1732193094682,-156.85,0.00028858,2]
[342882083,1732193094705,-151.0,0.0003,120]
[342882084,1732193094727,-151.0,0.0003,120]
[342882085,1732193094750,-167.13,0.0003137,2]
[342882086,1732193094772,-167.64,0.0003139,2]
[342882087,1732193094795,-865.07983201,0.00033133,2]
[342882088,1732193094818,-164.4205,0.00034192,2]
[342882089,1732193094842,-312.40625,0.00035579,2]
[342882090,1732193094867,-1374.19,0.00037197,2]
[342882091,1732193094890,-1571.46947323,0.00038356,10]
[342882092,1732193139104,-2254.262295,0.00026328,2]
[342882093,1732193139126,-150.0,0.00034548,10]
[342882094,1732193139147,-1079.32871199,0.00035,36]
[342882095,1732193165703,10000.0,0.000245,60]
[342882097,1732193230106,-151.0,0.00034191,18]
[342882098,1732193230128,-2520.67128704,0.00035,36]
[342882099,1732193230151,-151.0,0.00035,14]
[342882100,1732193230172,-151.0,0.00036917,14]
[342882101,1732193230193,-151.0,0.00037917,14]
[342882102,1732193230215,-250.0,0.00038447,120]
[342882103,1732193230243,-15390.67671932,0.00038557,2]
[342882104,1732193236098,-350.76728913,0.000315,30]
[342882105,1732193238256,-384.98847548,0.000315,30]
[342882106,1732193238279,-153.0,0.00038,120]
[342882107,1732193238303,-2132.47343513,0.00038557,2]
[342882108,1732193243202,-3122.75085646,0.00038557,2]
[342882109,1732193339957,150.0,0.00015342,2]
[342882110,1732193339979,6.33,0.00015342,2]
[342882111,1732193346101,-150.21505514,0.00028858,2]
[342882112,1732193366110,-6.11494486,0.00028858,2]
[342882113,1732193366132,-151.0,0.0003,120]
[342882114,1732193366154,-150.0,0.0003297,2]
[342882115,1732193366175,-588.04285548,0.000349,2]
[342882116,1732193366196,-158.95343963,0.000354,5]
[342882124,1732193434711,-899.9999991,0.00035,36]
[342882125,1732193434720,-5400.9066399,0.000356,5]
[342882126,1732193434731,-2393.616,0.000356,5]
[342882127,1732193434743,-916.4773601,0.000356,5]
[342882128,1732193434753,-588.04285546,0.00036793,2]
[342882129,1732193434762,-200.0,0.00038539,2]
[342882130,1732193434772,-400.0,0.00038556,5]
[342882131,1732193434781,-3254.09898909,0.00038557,2]
[342882132,1732193434790,-1405.13,0.00038574,120]
[342882133,1732193434800,-1312.42097604,0.00038578,2]
[342882134,1732193434886,-894.89083985,0.00038578,2]
[342882135,1732193434898,-550.2330322,0.00038578,2]